[Event "Prague Open 2025"]
[Site "Prague"]
[Date "2025.01.11"]
[Round "2.8"]
[White "Marek, Matyas"]
[Black "Korniichuk, Oleksandra"]
[Result "1-0"]
[Annotator "RC"]
[ECO "A46"]
[WhiteElo "2314"]
[BlackElo "2006"]
[PlyCount "57"]
[EventDate "2025.01.07"]
[EventType "swiss"]
[EventCountry "CZE"]
[SourceTitle "playchess.com"]
[Source "ChessBase"]
[SourceQuality "1"]
[TimeControl "40/5400+30:1800+30"]

1. d4 {[%emt 0:00:15]} Nf6 {[%emt 0:00:42]} 2. Nf3 {[%emt 0:00:25]} e6 {[%emt 0:04:05]} 3. Bf4 {[%emt 0:00:15]} b6 {[%emt 0:01:59]} 4. e3 {[%emt 0:01:16]} Bb7 {[%emt 0:00:36]} 5. Bd3 {[%emt 0:00:48]} c5 {[%emt 0:02:59]} 6. c3 {[%emt 0:00:59]} d5 {[%emt 0:01:58]} 7. Nbd2 {[%emt 0:00:15]} Be7 {[%emt 0:00:42]} 8. Ne5 {[%emt 0:02:15]} O-O {[%emt 0:04:02]} 9. g4 {[%emt 0:05:48]} Nfd7 {[%emt 0:02:01]} 10. h4 {[%emt 0:07:05]} Nxe5 {[%emt 0:05:05]} 11. Bxe5 {[%emt 0:00:15]} f6 {[%emt 0:06:58]} 12. Bg3 {[%emt 0:00:56]} Nc6 {[%emt 0:02:29]} 13. Qb1 {[%emt 0:08:02]} h6 {[%emt 0:02:11]} 14. g5 {[%emt 0:00:24]} f5 {[%emt 0:05:15]} 15. gxh6 {[%emt 0:00:39]} gxh6 {[%emt 0:00:05]} 16. Qd1 {[%emt 0:00:55]} Qe8 {[%emt 0:07:48]} 17. Bf4 {[%emt 0:02:23]} Kh7 {[%emt 0:04:04]} 18. Qf3 {[%emt 0:01:03]} Qf7 {[%emt 0:01:07]} 19. Qh3 {[%emt 0:02:25]} Rad8 {[%emt 0:06:05]} 20. Nf3 {[%emt 0:00:44]} Rg8 {[%emt 0:01:23]} 21. Ng5+ {[%emt 0:03:46]} Bxg5 {[%emt 0:02:37]} 22. hxg5 {[%emt 0:00:05]} h5 {[%emt 0:00:44]} 23. g6+ {[%emt 0:06:22]} Qxg6 {[%emt 0:03:09]} 24. O-O-O {[%emt 0:00:25]} Qg4 {[%emt 0:01:56]} 25. Qh2 {[%emt 0:00:15]} Qf3 {[%emt 0:02:16]} 26. Rdg1 {[%emt 0:04:42]} Rxg1+ {[%emt 0:02:06]} 27. Rxg1 {[%emt 0:00:03]} Rg8 {[%emt 0:01:50]} 28. Bg5 {[%emt 0:00:09]} cxd4 {[%emt 0:05:04]} 29. Rg3 {[%emt 0:00:10]} 1-0

[Event "Prague Open 2025"]
[Site "Prague"]
[Date "2025.01.11"]
[Round "2.9"]
[White "Mensing, Adrian"]
[Black "Golis, Wiktor"]
[Result "1-0"]
[Annotator "RC"]
[ECO "D30"]
[WhiteElo "2028"]
[BlackElo "2314"]
[PlyCount "63"]
[EventDate "2025.01.07"]
[EventType "swiss"]
[EventCountry "CZE"]
[SourceTitle "playchess.com"]
[Source "ChessBase"]
[SourceQuality "1"]
[TimeControl "40/5400+30:1800+30"]

1. d4 {[%emt 0:03:53]} d5 {[%emt 0:00:12]} 2. c4 {[%emt 0:00:11]} e6 {[%emt 0:00:06]} 3. Nf3 {[%emt 0:00:05]} Nf6 {[%emt 0:00:06]} 4. g3 {[%emt 0:00:06]} Bb4+ {[%emt 0:00:16]} 5. Nbd2 {[%emt 0:00:08]} dxc4 {[%emt 0:01:07]} 6. Bg2 {[%emt 0:00:27]} b5 {[%emt 0:01:03]} 7. O-O {[%emt 0:00:51]} O-O {[%emt 0:00:26]} 8. a4 {[%emt 0:00:05]} c6 {[%emt 0:00:16]} 9. Ne1 {[%emt 0:00:07]} Nd5 {[%emt 0:09:12]} 10. Nc2 {[%emt 0:03:37]} Be7 {[%emt 0:10:04]} 11. e4 {[%emt 0:00:28]} Nf6 {[%emt 0:01:30]} 12. g4 {[%emt 0:00:18]} e5 {[%emt 0:17:20]} 13. g5 {[%emt 0:05:44]} Nfd7 {[%emt 0:01:53]} 14. Nf3 {[%emt 0:04:09]} Qc7 {[%emt 0:09:12]} 15. axb5 {[%emt 0:03:43]} cxb5 {[%emt 0:00:36]} 16. Ne3 {[%emt 0:00:37]} Bb7 {[%emt 0:02:50]} 17. Nf5 {[%emt 0:03:18]} Bb4 {[%emt 0:07:03]} 18. d5 {[%emt 0:08:08]} Bd6 {[%emt 0:05:55]} 19. N3h4 {[%emt 0:05:58]} Nc5 {[%emt 0:04:27]} 20. Qh5 {[%emt 0:18:42]} Bc8 {[%emt 0:03:50]} 21. Be3 {[%emt 0:12:49]} a5 {[%emt 0:07:50]} 22. Kh1 {[%emt 0:05:09]} g6 {[%emt 0:08:42]} 23. Nh6+ {[%emt 0:00:34]} Kg7 {[%emt 0:00:13]} 24. Qf3 {[%emt 0:00:57]} Qe7 {[%emt 0:01:10]} 25. Rg1 {[%emt 0:09:12]} Kh8 {[%emt 0:02:05]} 26. Qg3 {[%emt 0:02:13]} Nd3 {[%emt 0:00:38]} 27. N4f5 {[%emt 0:07:59]} gxf5 {[%emt 0:01:48]} 28. exf5 {[%emt 0:00:01]} e4 {[%emt 0:00:48]} 29. Qh4 {[%emt 0:02:10]} Qe5 {[%emt 0:03:22]} 30. Bxe4 {[%emt 0:00:03]} Rg8 {[%emt 0:00:58]} 31. Nxf7+ {[%emt 0:00:14]} Kg7 {[%emt 0:00:08]} 32. Nxe5 {[%emt 0:00:24]} 1-0

[Event "Prague Open 2025"]
[Site "Prague"]
[Date "2025.01.11"]
[Round "2.10"]
[White "Kulhanek, Tomas"]
[Black "Topencik, Bruno"]
[Result "1/2-1/2"]
[Annotator "RC"]
[ECO "C42"]
[WhiteElo "2313"]
[BlackElo "1985"]
[PlyCount "21"]
[EventDate "2025.01.07"]
[EventType "swiss"]
[EventCountry "CZE"]
[SourceTitle "playchess.com"]
[Source "ChessBase"]
[SourceQuality "1"]
[TimeControl "40/5400+30:1800+30"]

1. e4 {[%emt 0:00:07]} e5 {[%emt 0:00:06]} 2. Nf3 {[%emt 0:00:30]} Nf6 {[%emt 0:00:09]} 3. Nxe5 {[%emt 0:01:12]} d6 {[%emt 0:00:10]} 4. Nf3 {[%emt 0:00:40]} Nxe4 {[%emt 0:00:10]} 5. d3 {[%emt 0:02:52]} Nf6 {[%emt 0:00:30]} 6. d4 {[%emt 0:00:05]} d5 {[%emt 0:00:13]} 7. Bd3 {[%emt 0:00:05]} c5 {[%emt 0:00:55]} 8. O-O {[%emt 0:02:14]} c4 {[%emt 0:00:17]} 9. Re1+ {[%emt 0:00:45]} Be7 {[%emt 0:00:38]} 10. Bf1 {[%emt 0:00:02]} O-O {[%emt 0:00:07]} 11. b3 {[%emt 0:02:01]} 1/2-1/2

[Event "Prague Open 2025"]
[Site "Prague"]
[Date "2025.01.11"]
[Round "2.11"]
[White "Vardanyan, Aras"]
[Black "Pousada Garcia, Victor Daniel"]
[Result "1-0"]
[Annotator "RC"]
[ECO "E06"]
[WhiteElo "2312"]
[BlackElo "1984"]
[PlyCount "223"]
[EventDate "2025.01.07"]
[EventType "swiss"]
[EventCountry "CZE"]
[SourceTitle "playchess.com"]
[Source "ChessBase"]
[SourceQuality "1"]
[TimeControl "40/5400+30:1800+30"]

1. d4 {[%emt 0:00:03]} Nf6 {[%emt 0:00:13]} 2. c4 {[%emt 0:00:12]} e6 {[%emt 0:00:06]} 3. Nf3 {[%emt 0:00:08]} d5 {[%emt 0:00:15]} 4. g3 {[%emt 0:00:05]} Be7 {[%emt 0:00:17]} 5. Bg2 {[%emt 0:00:06]} O-O {[%emt 0:00:06]} 6. O-O {[%emt 0:00:04]} dxc4 {[%emt 0:00:14]} 7. Qc2 {[%emt 0:01:54]} a6 {[%emt 0:00:39]} 8. a4 {[%emt 0:00:46]} Bd7 {[%emt 0:00:40]} 9. Rd1 {[%emt 0:02:57]} Bc6 {[%emt 0:00:48]} 10. Qxc4 {[%emt 0:02:29]} b5 {[%emt 0:00:33]} 11. Qd3 {[%emt 0:02:32]} Be4 {[%emt 0:09:08]} 12. Qe3 {[%emt 0:03:54]} b4 {[%emt 0:06:52]} 13. Nbd2 {[%emt 0:10:06]} Bc2 {[%emt 0:05:39]} 14. Ne1 {[%emt 0:00:09]} Bxd1 {[%emt 0:01:48]} 15. Bxa8 {[%emt 0:00:04]} Nbd7 {[%emt 0:00:52]} 16. Bc6 {[%emt 0:03:23]} Nb6 {[%emt 0:17:43]} 17. a5 {[%emt 0:09:29]} Nbd5 {[%emt 0:00:42]} 18. Qd3 {[%emt 0:05:27]} b3 {[%emt 0:00:10]} 19. Bxd5 {[%emt 0:00:30]} Qxd5 {[%emt 0:01:58]} 20. Ndf3 {[%emt 0:03:30]} Bc2 {[%emt 0:05:07]} 21. Nxc2 {[%emt 0:00:07]} bxc2 {[%emt 0:00:02]} 22. Qxa6 {[%emt 0:02:05]} Ra8 {[%emt 0:07:00]} 23. Qd3 {[%emt 0:00:07]} Rxa5 {[%emt 0:02:59]} 24. Rxa5 {[%emt 0:01:08]} Qxa5 {[%emt 0:00:01]} 25. Qxc2 {[%emt 0:00:13]} h6 {[%emt 0:00:54]} 26. Ne5 {[%emt 0:03:55]} Nd5 {[%emt 0:13:59]} 27. Bd2 {[%emt 0:05:50]} Qb6 {[%emt 0:06:44]} 28. Nc6 {[%emt 0:01:52]} Bd6 {[%emt 0:02:35]} 29. e3 {[%emt 0:04:52]} Ne7 {[%emt 0:02:37]} 30. Nxe7+ {[%emt 0:00:45]} Bxe7 {[%emt 0:00:01]} 31. Qc3 {[%emt 0:01:34]} h5 {[%emt 0:00:37]} 32. h3 {[%emt 0:01:19]} h4 {[%emt 0:00:15]} 33. gxh4 {[%emt 0:06:00]} Qb7 {[%emt 0:02:22]} 34. Kf1 {[%emt 0:05:59]} Bxh4 {[%emt 0:02:24]} 35. Ke2 {[%emt 0:04:09]} Qb5+ {[%emt 0:00:17]} 36. Ke1 {[%emt 0:00:21]} Qf5 {[%emt 0:00:12]} 37. Qxc7 {[%emt 0:00:10]} Qxf2+ {[%emt 0:05:48]} 38. Kd1 {[%emt 0:00:01]} Bg5 {[%emt 0:00:28]} 39. Qc8+ {[%emt 0:03:20]} Kh7 {[%emt 0:00:08]} 40. Qc2+ {[%emt 0:00:10]} Kg8 {[%emt 0:00:14]} 41. Qe4 {[%emt 0:35:16]} Qf1+ {[%emt 0:30:21]} 42. Kc2 {[%emt 0:00:05]} Qc4+ {[%emt 0:06:33]} 43. Kb1 {[%emt 0:00:34]} Qf1+ {[%emt 0:00:00]} 44. Ka2 {[%emt 0:00:00]} Qc4+ {[%emt 0:00:00]} 45. Kb1 {[%emt 0:00:00]} Qf1+ {[%emt 0:00:00]} 46. Ka2 {[%emt 0:00:00]} Qc4+ {[%emt 0:00:00]} 47. Ka3 {[%emt 0:00:00]} Qe2 {[%emt 0:00:00]} 48. Bc1 {[%emt 0:00:00]} Qc4 {[%emt 0:00:00]} 49. Bd2 {[%emt 0:00:00]} Qe2 {[%emt 0:00:00]} 50. Bc3 {[%emt 0:00:00]} Qxe3 {[%emt 0:00:00]} 51. Qc6 {[%emt 0:00:00]} Qf2 {[%emt 0:00:00]} 52. Ka4 {[%emt 0:00:00]} Bc1 {[%emt 0:00:00]} 53. b4 {[%emt 0:00:00]} Qa2+ {[%emt 0:00:00]} 54. Kb5 {[%emt 0:00:00]} f5 {[%emt 0:00:00]} 55. Kb6 {[%emt 0:00:00]} f4 {[%emt 0:00:00]} 56. b5 {[%emt 0:04:09]} Qe2 {[%emt 0:00:00]} 57. d5 {[%emt 0:06:34]} exd5 {[%emt 0:00:00]} 58. Qxd5+ {[%emt 0:00:56]} Kh7 {[%emt 0:00:14]} 59. Qd7 {[%emt 0:01:42]} Be3+ {[%emt 0:02:00]} 60. Ka6 {[%emt 0:01:15]} Qa2+ {[%emt 0:01:00]} 61. Ba5 {[%emt 0:00:26]} Qc4 {[%emt 0:00:35]} 62. Bc7 {[%emt 0:02:51]} Qa2+ {[%emt 0:01:54]} 63. Kb7 {[%emt 0:01:01]} Qg2+ {[%emt 0:00:29]} 64. Kc8 {[%emt 0:00:59]} Qg1 {[%emt 0:01:43]} 65. Be5 {[%emt 0:01:22]} Qg6 {[%emt 0:01:06]} 66. h4 {[%emt 0:01:34]} Kh6 {[%emt 0:01:07]} 67. b6 {[%emt 0:00:54]} Bxb6 {[%emt 0:01:00]} 68. Bxf4+ {[%emt 0:00:07]} Kh7 {[%emt 0:00:17]} 69. Be5 {[%emt 0:00:21]} Qc2+ {[%emt 0:01:20]} 70. Kb8 {[%emt 0:00:05]} Qg2 {[%emt 0:01:08]} 71. h5 {[%emt 0:00:37]} Be3 {[%emt 0:00:14]} 72. Qd3+ {[%emt 0:00:46]} Kg8 {[%emt 0:00:58]} 73. Qxe3 {[%emt 0:00:15]} Qc6 {[%emt 0:00:18]} 74. Qg5 {[%emt 0:01:14]} Qb6+ {[%emt 0:00:14]} 75. Kc8 {[%emt 0:00:05]} Qc6+ {[%emt 0:00:16]} 76. Kd8 {[%emt 0:00:04]} Qb6+ {[%emt 0:01:34]} 77. Kd7 {[%emt 0:00:10]} Qb5+ {[%emt 0:00:16]} 78. Ke7 {[%emt 0:00:30]} Qc5+ {[%emt 0:00:28]} 79. Ke6 {[%emt 0:00:17]} Qc8+ {[%emt 0:00:14]} 80. Kd5 {[%emt 0:00:09]} Qb7+ {[%emt 0:00:19]} 81. Kd4 {[%emt 0:00:06]} Qb2+ {[%emt 0:00:18]} 82. Ke4 {[%emt 0:00:47]} Qc2+ {[%emt 0:00:05]} 83. Kf3 {[%emt 0:00:45]} Qd1+ {[%emt 0:00:15]} 84. Kf2 {[%emt 0:01:06]} Qc2+ {[%emt 0:00:11]} 85. Kg3 {[%emt 0:00:20]} Qd3+ {[%emt 0:00:44]} 86. Kh4 {[%emt 0:01:26]} Qe4+ {[%emt 0:00:16]} 87. Bf4 {[%emt 0:00:37]} Qh1+ {[%emt 0:01:00]} 88. Kg4 {[%emt 0:00:32]} Qd1+ {[%emt 0:00:15]} 89. Kh3 {[%emt 0:00:13]} Qh1+ {[%emt 0:00:18]} 90. Bh2 {[%emt 0:00:15]} Qf1+ {[%emt 0:01:12]} 91. Kh4 {[%emt 0:00:50]} Qe1+ {[%emt 0:00:22]} 92. Qg3 {[%emt 0:00:33]} Qe4+ {[%emt 0:00:22]} 93. Kh3 {[%emt 0:01:02]} Qf5+ {[%emt 0:00:56]} 94. Qg4 {[%emt 0:00:01]} Qf1+ {[%emt 0:00:14]} 95. Kg3 {[%emt 0:00:08]} Qe1+ {[%emt 0:00:35]} 96. Kg2 {[%emt 0:00:08]} Qd2+ {[%emt 0:00:15]} 97. Kh3 {[%emt 0:00:25]} Qd3+ {[%emt 0:00:15]} 98. Bg3 {[%emt 0:00:06]} Qd5 {[%emt 0:00:59]} 99. Qe2 {[%emt 0:02:14]} Qd7+ {[%emt 0:00:59]} 100. Kh2 {[%emt 0:00:08]} Qc6 {[%emt 0:00:33]} 101. Be5 {[%emt 0:00:49]} Qa4 {[%emt 0:00:41]} 102. Kg3 {[%emt 0:01:18]} Qb3+ {[%emt 0:00:38]} 103. Qf3 {[%emt 0:00:21]} Qb1 {[%emt 0:00:38]} 104. Bd4 {[%emt 0:00:48]} Qb8+ {[%emt 0:00:15]} 105. Kh3 {[%emt 0:00:21]} Qb1 {[%emt 0:00:26]} 106. h6 {[%emt 0:01:04]} gxh6 {[%emt 0:00:48]} 107. Qd5+ {[%emt 0:00:15]} Kf8 {[%emt 0:00:18]} 108. Qd8+ {[%emt 0:00:44]} Kf7 {[%emt 0:00:05]} 109. Qd7+ {[%emt 0:00:06]} Kf8 {[%emt 0:00:47]} 110. Bc5+ {[%emt 0:00:47]} Kg8 {[%emt 0:00:01]} 111. Qe8+ {[%emt 0:00:24]} Kg7 {[%emt 0:00:46]} 112. Bd4+ {[%emt 0:00:07]} 1-0

[Event "Prague Open 2025"]
[Site "Prague"]
[Date "2025.01.11"]
[Round "2.12"]
[White "Zawal, Krzysztof"]
[Black "Radzimski, Antoni"]
[Result "0-1"]
[Annotator "RC"]
[ECO "C78"]
[WhiteElo "2013"]
[BlackElo "2289"]
[PlyCount "80"]
[EventDate "2025.01.07"]
[EventType "swiss"]
[EventCountry "CZE"]
[SourceTitle "playchess.com"]
[Source "ChessBase"]
[SourceQuality "1"]
[TimeControl "40/5400+30:1800+30"]

1. e4 {[%emt 0:00:03]} e5 {[%emt 0:01:20]} 2. Nf3 {[%emt 0:00:13]} Nc6 {[%emt 0:00:05]} 3. Bb5 {[%emt 0:00:26]} a6 {[%emt 0:00:10]} 4. Ba4 {[%emt 0:00:05]} Nf6 {[%emt 0:00:02]} 5. O-O {[%emt 0:00:49]} b5 {[%emt 0:00:22]} 6. Bb3 {[%emt 0:00:15]} Bb7 {[%emt 0:00:04]} 7. Re1 {[%emt 0:02:33]} Bc5 {[%emt 0:01:06]} 8. c3 {[%emt 0:00:40]} d6 {[%emt 0:00:19]} 9. d4 {[%emt 0:01:12]} Bb6 {[%emt 0:00:14]} 10. a4 {[%emt 0:01:18]} O-O {[%emt 0:00:45]} 11. Bg5 {[%emt 0:00:41]} h6 {[%emt 0:00:24]} 12. Bh4 {[%emt 0:00:07]} exd4 {[%emt 0:00:04]} 13. cxd4 {[%emt 0:01:30]} g5 {[%emt 0:01:05]} 14. Nxg5 {[%emt 0:12:46]} hxg5 {[%emt 0:00:06]} 15. Bxg5 {[%emt 0:00:06]} Nxd4 {[%emt 0:00:03]} 16. Bd5 {[%emt 0:01:27]} c6 {[%emt 0:00:20]} 17. Ra3 {[%emt 0:02:28]} Re8 {[%emt 0:00:16]} 18. Rg3 {[%emt 0:03:56]} Kf8 {[%emt 0:00:07]} 19. Bh6+ {[%emt 0:03:56]} Ke7 {[%emt 0:00:06]} 20. Rg7 {[%emt 0:20:32]} cxd5 {[%emt 0:11:54]} 21. exd5+ {[%emt 0:00:09]} Kd7 {[%emt 0:00:10]} 22. Rxf7+ {[%emt 0:00:53]} Kc8 {[%emt 0:00:40]} 23. Rxe8 {[%emt 0:02:06]} Nxe8 {[%emt 0:03:23]} 24. Qh5 {[%emt 0:21:29]} Kb8 {[%emt 0:03:15]} 25. Be3 {[%emt 0:03:26]} b4 {[%emt 0:05:25]} 26. Qh8 {[%emt 0:04:02]} Ne2+ {[%emt 0:02:16]} 27. Kf1 {[%emt 0:00:47]} Bxe3 {[%emt 0:00:11]} 28. fxe3 {[%emt 0:00:37]} Nc1 {[%emt 0:00:21]} 29. Rf8 {[%emt 0:07:39]} Ka7 {[%emt 0:01:42]} 30. a5 {[%emt 0:00:59]} Qxa5 {[%emt 0:00:22]} 31. Qd4+ {[%emt 0:01:23]} Qb6 {[%emt 0:00:14]} 32. Qxb6+ {[%emt 0:01:12]} Kxb6 {[%emt 0:00:03]} 33. h4 {[%emt 0:00:12]} Bxd5 {[%emt 0:02:37]} 34. h5 {[%emt 0:00:13]} Nb3 {[%emt 0:01:27]} 35. h6 {[%emt 0:00:17]} Be4 {[%emt 0:00:06]} 36. Rf4 {[%emt 0:00:47]} d5 {[%emt 0:01:06]} 37. g4 {[%emt 0:00:32]} a5 {[%emt 0:00:33]} 38. Rf7 {[%emt 0:00:46]} Nd6 {[%emt 0:00:48]} 39. Rf6 {[%emt 0:00:12]} Kc5 {[%emt 0:00:06]} 40. g5 {[%emt 0:00:21]} Rg8 {[%emt 0:00:11]} 0-1

[Event "Prague Open 2025"]
[Site "Prague"]
[Date "2025.01.11"]
[Round "2.13"]
[White "Sokhor, Nazar"]
[Black "Goh, Choon Keng Philip"]
[Result "1-0"]
[Annotator "RC"]
[ECO "A40"]
[WhiteElo "2265"]
[BlackElo "1978"]
[PlyCount "55"]
[EventDate "2025.01.07"]
[EventType "swiss"]
[EventCountry "CZE"]
[SourceTitle "playchess.com"]
[Source "ChessBase"]
[SourceQuality "1"]
[TimeControl "40/5400+30:1800+30"]

1. d4 {[%emt 0:00:06]} e6 {[%emt 0:00:14]} 2. Nf3 {[%emt 0:00:11]} Nf6 {[%emt 0:00:14]} 3. Bf4 {[%emt 0:00:13]} c5 {[%emt 0:00:15]} 4. c3 {[%emt 0:00:20]} Qb6 {[%emt 0:01:16]} 5. Qb3 {[%emt 0:00:31]} Nc6 {[%emt 0:01:41]} 6. e3 {[%emt 0:00:19]} d5 {[%emt 0:01:48]} 7. Na3 {[%emt 0:03:11]} Qxb3 {[%emt 0:07:33]} 8. axb3 {[%emt 0:00:24]} Nh5 {[%emt 0:02:35]} 9. Bc7 {[%emt 0:05:00]} cxd4 {[%emt 0:06:18]} 10. exd4 {[%emt 0:00:23]} Be7 {[%emt 0:02:51]} 11. h3 {[%emt 0:02:03]} O-O {[%emt 0:01:29]} 12. b4 {[%emt 0:01:28]} Bd7 {[%emt 0:14:21]} 13. b5 {[%emt 0:03:38]} Nb8 {[%emt 0:01:49]} 14. Bd3 {[%emt 0:01:34]} Rc8 {[%emt 0:00:48]} 15. Bh2 {[%emt 0:00:20]} Be8 {[%emt 0:00:24]} 16. O-O {[%emt 0:01:46]} Nd7 {[%emt 0:00:32]} 17. Ra2 {[%emt 0:01:42]} Nhf6 {[%emt 0:02:51]} 18. Rfa1 {[%emt 0:01:43]} Bd8 {[%emt 0:01:36]} 19. c4 {[%emt 0:00:50]} dxc4 {[%emt 0:02:43]} 20. Nxc4 {[%emt 0:00:19]} Bb6 {[%emt 0:09:54]} 21. Bd6 {[%emt 0:08:27]} Rxc4 {[%emt 0:09:11]} 22. Bxc4 {[%emt 0:00:03]} Rc8 {[%emt 0:01:07]} 23. Bd3 {[%emt 0:01:00]} Nd5 {[%emt 0:00:39]} 24. b4 {[%emt 0:01:41]} Rc3 {[%emt 0:01:58]} 25. Ra3 {[%emt 0:00:33]} N7f6 {[%emt 0:00:59]} 26. Bc5 {[%emt 0:03:28]} Bc7 {[%emt 0:02:19]} 27. Rxc3 {[%emt 0:00:10]} Nxc3 {[%emt 0:00:09]} 28. Rxa7 {[%emt 0:00:09]} 1-0

[Event "Prague Open 2025"]
[Site "Prague"]
[Date "2025.01.11"]
[Round "2.14"]
[White "Amonov, Daler"]
[Black "Pourquet, Matthieu"]
[Result "1/2-1/2"]
[Annotator "RC"]
[ECO "B13"]
[WhiteElo "2004"]
[BlackElo "2262"]
[PlyCount "58"]
[EventDate "2025.01.07"]
[EventType "swiss"]
[EventCountry "CZE"]
[SourceTitle "playchess.com"]
[Source "ChessBase"]
[SourceQuality "1"]
[TimeControl "40/5400+30:1800+30"]

1. e4 {[%emt 0:00:02]} c6 {[%emt 0:03:10]} 2. d4 {[%emt 0:00:16]} d5 {[%emt 0:00:09]} 3. exd5 {[%emt 0:00:04]} cxd5 {[%emt 0:00:05]} 4. Bd3 {[%emt 0:00:12]} Nf6 {[%emt 0:00:09]} 5. c3 {[%emt 0:00:39]} Bg4 {[%emt 0:00:06]} 6. Qb3 {[%emt 0:00:34]} Qc7 {[%emt 0:00:06]} 7. h3 {[%emt 0:09:15]} Bd7 {[%emt 0:00:53]} 8. Ne2 {[%emt 0:02:28]} Nc6 {[%emt 0:00:20]} 9. Bf4 {[%emt 0:05:59]} e5 {[%emt 0:00:36]} 10. dxe5 {[%emt 0:00:02]} Nxe5 {[%emt 0:00:08]} 11. Bxe5 {[%emt 0:00:16]} Qxe5 {[%emt 0:00:08]} 12. Nd2 {[%emt 0:00:23]} Bc5 {[%emt 0:02:30]} 13. Nf3 {[%emt 0:09:12]} Qc7 {[%emt 0:00:47]} 14. O-O {[%emt 0:06:06]} O-O {[%emt 0:01:16]} 15. a4 {[%emt 0:00:25]} Rad8 {[%emt 0:06:35]} 16. a5 {[%emt 0:03:49]} a6 {[%emt 0:00:45]} 17. Ned4 {[%emt 0:03:02]} g6 {[%emt 0:03:29]} 18. Rfc1 {[%emt 0:07:38]} Bc8 {[%emt 0:04:23]} 19. Qc2 {[%emt 0:01:14]} Rfe8 {[%emt 0:04:10]} 20. b4 {[%emt 0:03:43]} Bf8 {[%emt 0:00:13]} 21. b5 {[%emt 0:00:41]} Bh6 {[%emt 0:07:16]} 22. Rcb1 {[%emt 0:01:39]} Ne4 {[%emt 0:02:07]} 23. bxa6 {[%emt 0:05:19]} bxa6 {[%emt 0:00:24]} 24. Rb6 {[%emt 0:00:47]} Rd6 {[%emt 0:23:27]} 25. Rab1 {[%emt 0:03:28]} Qc5 {[%emt 0:02:07]} 26. Nb3 {[%emt 0:08:12]} Qc7 {[%emt 0:00:12]} 27. Nbd4 {[%emt 0:00:04]} Qc5 28. Qa4 Bd7 29. Qc2 Qc7 1/2-1/2

[Event "Prague Open 2025"]
[Site "Prague"]
[Date "2025.01.11"]
[Round "2.15"]
[White "Chan, Kim Yew"]
[Black "Maly, Filip"]
[Result "1-0"]
[Annotator "RC"]
[ECO "E63"]
[WhiteElo "2258"]
[BlackElo "1970"]
[PlyCount "75"]
[EventDate "2025.01.07"]
[EventType "swiss"]
[EventCountry "CZE"]
[SourceTitle "playchess.com"]
[Source "ChessBase"]
[SourceQuality "1"]
[TimeControl "40/5400+30:1800+30"]

1. Nf3 {[%emt 0:00:01]} Nf6 {[%emt 0:01:10]} 2. c4 {[%emt 0:00:03]} g6 {[%emt 0:01:01]} 3. d4 {[%emt 0:00:02]} Bg7 {[%emt 0:01:03]} 4. g3 {[%emt 0:00:02]} O-O {[%emt 0:02:06]} 5. Bg2 {[%emt 0:00:02]} d6 {[%emt 0:00:07]} 6. Nc3 {[%emt 0:00:04]} Nc6 {[%emt 0:02:26]} 7. O-O {[%emt 0:00:03]} a6 {[%emt 0:01:42]} 8. d5 {[%emt 0:00:21]} Na5 {[%emt 0:01:54]} 9. b3 {[%emt 0:00:02]} b5 {[%emt 0:13:31]} 10. cxb5 {[%emt 0:08:45]} axb5 {[%emt 0:01:20]} 11. b4 {[%emt 0:00:09]} Nc4 {[%emt 0:14:33]} 12. Nd4 {[%emt 0:05:16]} Bb7 {[%emt 0:13:25]} 13. Ndxb5 {[%emt 0:10:08]} e6 {[%emt 0:05:27]} 14. e4 {[%emt 0:17:18]} exd5 {[%emt 0:10:19]} 15. exd5 {[%emt 0:00:20]} Nxd5 {[%emt 0:01:01]} 16. Nxd5 {[%emt 0:05:47]} Bxa1 {[%emt 0:00:57]} 17. Bh6 {[%emt 0:00:29]} Rxa2 {[%emt 0:01:48]} 18. Bxf8 {[%emt 0:06:49]} Kxf8 {[%emt 0:05:39]} 19. Qb3 {[%emt 0:02:09]} Ra8 {[%emt 0:01:29]} 20. Qxc4 {[%emt 0:15:43]} c6 {[%emt 0:00:06]} 21. Nf4 {[%emt 0:03:54]} cxb5 {[%emt 0:07:56]} 22. Qxb5 {[%emt 0:00:07]} Bxg2 {[%emt 0:00:18]} 23. Kxg2 {[%emt 0:00:03]} Be5 {[%emt 0:05:48]} 24. Nd5 {[%emt 0:00:24]} Ra2 {[%emt 0:00:28]} 25. Qc6 {[%emt 0:08:52]} Qg5 {[%emt 0:06:49]} 26. b5 {[%emt 0:01:02]} h5 27. Qc4 {[%emt 0:02:28]} Rb2 {[%emt 0:00:47]} 28. b6 {[%emt 0:02:21]} h4 {[%emt 0:00:01]} 29. Kh3 {[%emt 0:06:06]} Qf5+ {[%emt 0:00:25]} 30. Kg2 {[%emt 0:01:39]} h3+ {[%emt 0:00:02]} 31. Kg1 {[%emt 0:00:11]} Qf3 {[%emt 0:00:33]} 32. Ne3 {[%emt 0:01:02]} Rxb6 {[%emt 0:00:15]} 33. Qc8+ {[%emt 0:00:05]} Kg7 {[%emt 0:00:08]} 34. Qxh3 {[%emt 0:00:02]} Rb2 {[%emt 0:00:26]} 35. Ng4 {[%emt 0:01:43]} Bd4 {[%emt 0:00:54]} 36. Qh6+ {[%emt 0:00:08]} Kg8 {[%emt 0:00:02]} 37. Qh4 {[%emt 0:00:05]} d5 {[%emt 0:00:56]} 38. Nh6+ {[%emt 0:00:16]} 1-0

[Event "Prague Open 2025"]
[Site "Prague"]
[Date "2025.01.11"]
[Round "2.16"]
[White "Bohatyrov, Mykola"]
[Black "Tolmacevs, Artjoms"]
[Result "0-1"]
[Annotator "RC"]
[ECO "A04"]
[WhiteElo "1998"]
[BlackElo "2252"]
[PlyCount "68"]
[EventDate "2025.01.07"]
[EventType "swiss"]
[EventCountry "CZE"]
[SourceTitle "playchess.com"]
[Source "ChessBase"]
[SourceQuality "1"]
[TimeControl "40/5400+30:1800+30"]

1. Nf3 {[%emt 0:00:03]} c5 {[%emt 0:00:09]} 2. c4 {[%emt 0:01:29]} g6 {[%emt 0:00:29]} 3. g3 {[%emt 0:00:20]} Bg7 {[%emt 0:00:21]} 4. Bg2 {[%emt 0:00:04]} Nc6 {[%emt 0:00:22]} 5. O-O {[%emt 0:00:09]} e5 {[%emt 0:01:06]} 6. Nc3 {[%emt 0:00:12]} d6 {[%emt 0:01:57]} 7. e3 {[%emt 0:09:43]} Nge7 {[%emt 0:01:58]} 8. b3 {[%emt 0:02:14]} Bg4 {[%emt 0:11:15]} 9. h3 {[%emt 0:02:49]} Bf5 {[%emt 0:01:17]} 10. Bb2 {[%emt 0:02:54]} Bd3 {[%emt 0:03:55]} 11. Re1 {[%emt 0:01:30]} f5 {[%emt 0:14:48]} 12. Ng5 {[%emt 0:07:58]} Qd7 {[%emt 0:07:25]} 13. Nd5 {[%emt 0:13:20]} O-O {[%emt 0:02:28]} 14. Rc1 {[%emt 0:26:23]} h6 {[%emt 0:03:16]} 15. Nxe7+ {[%emt 0:00:08]} Nxe7 {[%emt 0:01:13]} 16. Nf3 {[%emt 0:00:11]} Nc6 {[%emt 0:05:30]} 17. a3 {[%emt 0:04:38]} e4 {[%emt 0:04:28]} 18. Bxg7 {[%emt 0:00:24]} Qxg7 {[%emt 0:00:59]} 19. Nh2 {[%emt 0:00:15]} Qb2 {[%emt 0:01:30]} 20. f3 {[%emt 0:01:08]} Rae8 {[%emt 0:06:31]} 21. fxe4 {[%emt 0:09:29]} fxe4 {[%emt 0:03:24]} 22. Ng4 {[%emt 0:00:47]} h5 {[%emt 0:00:09]} 23. Nf2 {[%emt 0:00:04]} Rxf2 {[%emt 0:00:06]} 24. Kxf2 {[%emt 0:00:04]} Qe5 {[%emt 0:00:38]} 25. Kg1 {[%emt 0:07:08]} Qxg3 {[%emt 0:00:10]} 26. Rf1 {[%emt 0:00:43]} Bxf1 {[%emt 0:02:43]} 27. Qxf1 {[%emt 0:00:05]} Ne5 {[%emt 0:02:42]} 28. Qf4 {[%emt 0:02:32]} Nf3+ {[%emt 0:00:13]} 29. Kh1 {[%emt 0:00:05]} Qxf4 {[%emt 0:00:14]} 30. exf4 {[%emt 0:00:05]} Nxd2 {[%emt 0:00:05]} 31. Re1 {[%emt 0:00:20]} e3 {[%emt 0:01:18]} 32. Bxb7 {[%emt 0:00:20]} Nxb3 {[%emt 0:00:06]} 33. Kg2 {[%emt 0:01:01]} Kg7 {[%emt 0:00:24]} 34. Bd5 {[%emt 0:01:27]} Kf6 {[%emt 0:00:34]} 0-1